[Event "57th Biel Festival ATO 2024"]
[Site "Biel"]
[Date "2024.07.22"]
[Round "6.24"]
[White "Mohr, Jan"]
[Black "Coletta, Julien"]
[Result "1/2-1/2"]
[ECO "D43"]
[WhiteElo "1824"]
[BlackElo "1778"]
[Annotator "NA RC"]
[PlyCount "58"]
[EventDate "2024.07.03"]
[EventType "swiss"]
[EventCountry "SUI"]
[SourceTitle "playchess.com"]
[Source "ChessBase"]
[SourceQuality "1"]
[TimeControl "40/5400+30:1800+30"]

1. d4 {[%emt 0:00:05]} d5 {[%emt 0:00:08]} 2. c4 {[%emt 0:00:03]} c6 {[%emt 0:00:04]} 3. Nf3 {[%emt 0:00:14]} Nf6 {[%emt 0:00:06]} 4. Nc3 {[%emt 0:00:11]} e6 {[%emt 0:00:07]} 5. Bf4 {[%emt 0:00:52]} dxc4 {[%emt 0:00:56]} 6. a4 {[%emt 0:00:39]} Bb4 {[%emt 0:01:11]} 7. e3 {[%emt 0:02:07]} b5 {[%emt 0:00:21]} 8. Nd2 {[%emt 0:01:05]} Bxc3 {[%emt 0:09:21]} 9. bxc3 {[%emt 0:00:02]} Nd5 {[%emt 0:01:24]} 10. Ne4 {[%emt 0:02:15]} Nxf4 {[%emt 0:00:36]} 11. exf4 {[%emt 0:00:14]} Qd5 {[%emt 0:09:33]} 12. Nc5 {[%emt 0:01:41]} Nd7 {[%emt 0:02:32]} 13. Nxd7 {[%emt 0:09:43]} Qxd7 {[%emt 0:00:21]} 14. Qg4 {[%emt 0:00:48]} O-O {[%emt 0:02:01]} 15. Be2 {[%emt 0:00:37]} a5 {[%emt 0:11:51]} 16. h4 {[%emt 0:01:43]} Qc7 {[%emt 0:09:35]} 17. Qg5 {[%emt 0:00:35]} Ba6 {[%emt 0:06:28]} 18. Qc5 {[%emt 0:02:10]} Qxf4 {[%emt 0:08:31]} 19. Qxc6 {[%emt 0:01:18]} Rfc8 {[%emt 0:01:01]} 20. Qf3 {[%emt 0:01:23]} Qxf3 {[%emt 0:02:34]} 21. Bxf3 {[%emt 0:00:02]} Ra7 {[%emt 0:00:11]} 22. axb5 {[%emt 0:00:09]} Bxb5 {[%emt 0:00:09]} 23. O-O {[%emt 0:00:17]} a4 {[%emt 0:07:22]} 24. Rfb1 {[%emt 0:00:28]} Bd7 {[%emt 0:04:58]} 25. Ra3 {[%emt 0:00:50]} Kf8 {[%emt 0:01:43]} 26. Rb4 {[%emt 0:01:20]} Ke7 {[%emt 0:04:04]} 27. Be2 {[%emt 0:01:48]} Rac7 {[%emt 0:00:26]} 28. f4 {[%emt 0:01:37]} f6 {[%emt 0:02:39]} 29. Kf2 {[%emt 0:00:37]} Kf7 {[%emt 0:03:40]} 1/2-1/2

[Event "57th Biel Festival ATO 2024"]
[Site "Biel"]
[Date "2024.07.22"]
[Round "6.26"]
[White "Paholok, Igor"]
[Black "Moon, Sunwoong"]
[Result "1-0"]
[ECO "C07"]
[WhiteElo "1801"]
[BlackElo "1661"]
[Annotator "NA"]
[PlyCount "30"]
[EventDate "2024.07.03"]
[EventType "swiss"]
[EventCountry "SUI"]
[SourceTitle "playchess.com"]
[Source "ChessBase"]
[SourceQuality "1"]
[TimeControl "40/5400+30:1800+30"]

1. e4 {[%emt 0:05:51]} e6 {[%emt 0:00:30]} 2. d4 {[%emt 0:00:18]} d5 {[%emt 0:00:06]} 3. Nd2 {[%emt 0:00:41]} c5 {[%emt 0:00:16]} 4. c3 {[%emt 0:00:16]} dxe4 {[%emt 0:00:46]} 5. Nxe4 {[%emt 0:02:01]} cxd4 {[%emt 0:00:15]} 6. Qa4+ {[%emt 0:06:42]} Bd7 {[%emt 0:03:56]} 7. Qxd4 {[%emt 0:00:57]} Nc6 {[%emt 0:00:07]} 8. Qd3 {[%emt 0:11:18]} Qc7 {[%emt 0:02:41]} 9. Qg3 {[%emt 0:08:09]} Qxg3 {[%emt 0:01:29]} 10. hxg3 {[%emt 0:00:25]} f6 {[%emt 0:00:26]} 11. Be3 {[%emt 0:02:11]} O-O-O {[%emt 0:00:16]} 12. O-O-O {[%emt 0:01:23]} Be7 {[%emt 0:03:35]} 13. Bc4 {[%emt 0:04:23]} f5 {[%emt 0:01:43]} 14. Nd6+ {[%emt 0:01:13]} Bxd6 {[%emt 0:00:31]} 15. Rxd6 {[%emt 0:00:29]} Re8 {[%emt 0:00:22]} 1-0

[Event "57th Biel Festival ATO 2024"]
[Site "Biel"]
[Date "2024.07.22"]
[Round "6.27"]
[White "Kessler, Meinrad"]
[Black "Svendsen, Hannelore"]
[Result "0-1"]
[ECO "B19"]
[WhiteElo "1874"]
[BlackElo "1753"]
[Annotator "NA"]
[PlyCount "82"]
[EventDate "2024.07.03"]
[EventType "swiss"]
[EventCountry "SUI"]
[SourceTitle "playchess.com"]
[Source "ChessBase"]
[SourceQuality "1"]
[TimeControl "40/5400+30:1800+30"]

1. e4 {[%emt 0:00:08]} c6 {[%emt 0:00:16]} 2. d4 {[%emt 0:00:08]} d5 {[%emt 0:00:08]} 3. Nc3 {[%emt 0:00:11]} dxe4 {[%emt 0:00:34]} 4. Nxe4 {[%emt 0:00:11]} Bf5 {[%emt 0:00:22]} 5. Ng3 {[%emt 0:00:29]} Bg6 {[%emt 0:00:13]} 6. h4 {[%emt 0:00:34]} h6 {[%emt 0:01:08]} 7. Nf3 {[%emt 0:00:43]} Nd7 {[%emt 0:02:21]} 8. Bd3 {[%emt 0:00:33]} Bxd3 {[%emt 0:00:41]} 9. Qxd3 {[%emt 0:00:39]} e6 {[%emt 0:00:46]} 10. Bf4 {[%emt 0:05:29]} Qa5+ {[%emt 0:05:52]} 11. c3 {[%emt 0:06:46]} Ngf6 {[%emt 0:01:31]} 12. Ne4 {[%emt 0:05:23]} Nxe4 {[%emt 0:09:01]} 13. Qxe4 {[%emt 0:00:18]} Nf6 {[%emt 0:06:13]} 14. Qc2 {[%emt 0:05:25]} Be7 {[%emt 0:00:40]} 15. Ne5 {[%emt 0:02:30]} Qd5 {[%emt 0:03:39]} 16. Be3 {[%emt 0:07:24]} Qxg2 {[%emt 0:08:37]} 17. O-O-O {[%emt 0:00:07]} Qe4 {[%emt 0:07:19]} 18. Qb3 {[%emt 0:00:51]} b5 {[%emt 0:06:57]} 19. Rhg1 {[%emt 0:04:35]} g6 {[%emt 0:04:53]} 20. Rde1 {[%emt 0:02:40]} Qd5 {[%emt 0:01:20]} 21. c4 {[%emt 0:01:53]} bxc4 {[%emt 0:02:33]} 22. Qb7 {[%emt 0:00:31]} Rd8 {[%emt 0:05:49]} 23. Nxc6 {[%emt 0:06:18]} Rd7 {[%emt 0:01:26]} 24. Qb8+ {[%emt 0:04:42]} Bd8 {[%emt 0:00:33]} 25. Nxd8 {[%emt 0:02:16]} Rxd8 {[%emt 0:00:27]} 26. Qxa7 {[%emt 0:00:11]} Ra8 {[%emt 0:03:19]} 27. Qc5 {[%emt 0:01:11]} Qxc5 {[%emt 0:02:21]} 28. dxc5 {[%emt 0:00:11]} Rxa2 {[%emt 0:00:56]} 29. Kb1 {[%emt 0:02:52]} Ra6 {[%emt 0:01:29]} 30. Rc1 {[%emt 0:00:45]} Ke7 {[%emt 0:02:39]} 31. Rgd1 {[%emt 0:00:38]} Rha8 {[%emt 0:01:02]} 32. Rxc4 {[%emt 0:00:16]} Ra1+ {[%emt 0:06:02]} 33. Kc2 {[%emt 0:00:23]} R1a4 {[%emt 0:00:41]} 34. b4 {[%emt 0:04:06]} Nd5 {[%emt 0:02:29]} 35. c6 {[%emt 0:02:48]} Ra2+ {[%emt 0:04:17]} 36. Kd3 {[%emt 0:01:00]} R2a3+ {[%emt 0:04:18]} 37. Kd4 {[%emt 0:05:01]} Nxe3 {[%emt 0:01:43]} 38. Rb1 {[%emt 0:18:24]} Rd8+ {[%emt 0:02:31]} 39. Kc5 {[%emt 0:00:50]} Rd5+ {[%emt 0:01:01]} 40. Kb6 {[%emt 0:00:12]} Nxc4+ {[%emt 0:00:09]} 41. Kb7 {[%emt 0:30:41]} Rb5+ {[%emt 0:31:03]} 0-1

[Event "57th Biel Festival ATO 2024"]
[Site "Biel"]
[Date "2024.07.22"]
[Round "6.28"]
[White "Buntschu, Kurt"]
[Black "Luedi, Paul"]
[Result "1/2-1/2"]
[ECO "D02"]
[WhiteElo "1868"]
[BlackElo "1715"]
[Annotator "NA"]
[PlyCount "70"]
[EventDate "2024.07.03"]
[EventType "swiss"]
[EventCountry "SUI"]
[SourceTitle "playchess.com"]
[Source "ChessBase"]
[SourceQuality "1"]
[TimeControl "40/5400+30:1800+30"]

1. d4 {[%emt 0:00:17]} d5 {[%emt 0:00:26]} 2. Nf3 {[%emt 0:00:08]} Nf6 {[%emt 0:00:20]} 3. Bf4 {[%emt 0:00:13]} c5 {[%emt 0:00:59]} 4. e3 {[%emt 0:00:25]} Nc6 {[%emt 0:00:51]} 5. c3 {[%emt 0:00:18]} Bf5 {[%emt 0:03:47]} 6. Bd3 {[%emt 0:03:17]} Bxd3 {[%emt 0:03:11]} 7. Qxd3 {[%emt 0:00:45]} e6 {[%emt 0:01:26]} 8. Nbd2 {[%emt 0:01:01]} c4 {[%emt 0:06:38]} 9. Qc2 {[%emt 0:01:04]} b5 {[%emt 0:04:23]} 10. O-O {[%emt 0:05:01]} Rc8 {[%emt 0:02:17]} 11. e4 {[%emt 0:06:46]} dxe4 {[%emt 0:05:02]} 12. Nxe4 {[%emt 0:00:11]} Be7 {[%emt 0:09:07]} 13. Ne5 {[%emt 0:16:59]} Nd5 {[%emt 0:05:13]} 14. Bg3 {[%emt 0:04:14]} f5 {[%emt 0:03:00]} 15. Nc5 {[%emt 0:26:11]} Bxc5 {[%emt 0:00:43]} 16. dxc5 {[%emt 0:00:37]} O-O {[%emt 0:07:26]} 17. Nxc6 {[%emt 0:02:27]} Rxc6 {[%emt 0:01:39]} 18. Bd6 {[%emt 0:00:05]} Rf6 {[%emt 0:07:01]} 19. b3 {[%emt 0:00:51]} Rg6 {[%emt 0:02:32]} 20. bxc4 {[%emt 0:00:36]} Qg5 {[%emt 0:00:41]} 21. g3 {[%emt 0:09:27]} bxc4 {[%emt 0:10:18]} 22. Rab1 {[%emt 0:00:11]} Rc8 {[%emt 0:04:45]} 23. Rb7 {[%emt 0:01:08]} Nf4 {[%emt 0:04:12]} 24. Kh1 {[%emt 0:00:38]} Nd3 {[%emt 0:01:58]} 25. Qe2 {[%emt 0:05:46]} f4 {[%emt 0:03:31]} 26. Qe4 {[%emt 0:03:45]} Nxc5 {[%emt 0:03:31]} 27. Bxc5 {[%emt 0:02:00]} Qxc5 {[%emt 0:00:55]} 28. Kg2 {[%emt 0:05:13]} Rd8 {[%emt 0:03:26]} 29. Rb2 {[%emt 0:01:01]} Qd5 {[%emt 0:01:01]} 30. Qxd5 {[%emt 0:00:11]} exd5 {[%emt 0:00:05]} 31. Rd1 {[%emt 0:00:20]} a6 {[%emt 0:00:25]} 32. Rd4 {[%emt 0:00:24]} fxg3 {[%emt 0:00:27]} 33. fxg3 {[%emt 0:00:13]} h6 {[%emt 0:00:16]} 34. a4 {[%emt 0:00:11]} Re6 {[%emt 0:00:35]} 35. Rbd2 {[%emt 0:00:25]} Red6 {[%emt 0:00:22]} 1/2-1/2

[Event "57th Biel Festival ATO 2024"]
[Site "Biel"]
[Date "2024.07.22"]
[Round "6.29"]
[White "Linder, Ernst"]
[Black "Jaggy, Enzo"]
[Result "0-1"]
[ECO "D15"]
[WhiteElo "1765"]
[BlackElo "1835"]
[Annotator "NA"]
[PlyCount "29"]
[EventDate "2024.07.03"]
[EventType "swiss"]
[EventCountry "SUI"]
[SourceTitle "playchess.com"]
[Source "ChessBase"]
[SourceQuality "1"]
[TimeControl "40/5400+30:1800+30"]

1. d4 {[%emt 0:00:08]} d5 {[%emt 0:00:04]} 2. Nf3 {[%emt 0:00:22]} Nf6 {[%emt 0:00:08]} 3. c4 {[%emt 0:01:12]} c6 {[%emt 0:00:06]} 4. Nc3 {[%emt 0:00:29]} dxc4 {[%emt 0:00:05]} 5. e3 {[%emt 0:02:32]} b5 {[%emt 0:01:00]} 6. a4 {[%emt 0:01:14]} b4 {[%emt 0:00:49]} 7. Na2 {[%emt 0:00:58]} a5 {[%emt 0:00:10]} 8. Bxc4 {[%emt 0:00:38]} Ba6 {[%emt 0:03:28]} 9. Qb3 {[%emt 0:10:40]} e6 {[%emt 0:03:29]} 10. Bd2 {[%emt 0:06:22]} c5 {[%emt 0:04:27]} 11. O-O {[%emt 0:04:27]} cxd4 {[%emt 0:00:52]} 12. exd4 {[%emt 0:00:55]} Bxc4 {[%emt 0:00:36]} 13. Qxc4 {[%emt 0:00:31]} e5 {[%emt 0:01:16]} 14. Qc8 {[%emt 0:08:58]} Be7 {[%emt 0:07:24]} 15. Nxe5 {[%emt 0:05:39]} 0-1

[Event "57th Biel Festival ATO 2024"]
[Site "Biel"]
[Date "2024.07.22"]
[Round "6.30"]
[White "Ernst, Heinz"]
[Black "Lesniak, Julien"]
[Result "1-0"]
[ECO "D55"]
[WhiteElo "1830"]
[BlackElo "1728"]
[Annotator "NA RC"]
[PlyCount "47"]
[EventDate "2024.07.03"]
[EventType "swiss"]
[EventCountry "SUI"]
[SourceTitle "playchess.com"]
[Source "ChessBase"]
[SourceQuality "1"]
[TimeControl "40/5400+30:1800+30"]

1. d4 {[%emt 0:00:08]} e6 {[%emt 0:00:21]} 2. c4 {[%emt 0:00:18]} Nf6 {[%emt 0:01:25]} 3. Nc3 {[%emt 0:00:16]} d5 {[%emt 0:01:56]} 4. Bg5 {[%emt 0:00:32]} Be7 {[%emt 0:00:24]} 5. e3 {[%emt 0:00:49]} Nbd7 {[%emt 0:01:07]} 6. cxd5 {[%emt 0:00:49]} exd5 {[%emt 0:01:04]} 7. Nf3 {[%emt 0:00:57]} h6 {[%emt 0:00:44]} 8. Bh4 {[%emt 0:00:22]} O-O {[%emt 0:01:30]} 9. Bd3 {[%emt 0:00:33]} b6 {[%emt 0:02:01]} 10. O-O {[%emt 0:00:44]} Bb7 {[%emt 0:01:54]} 11. Rc1 {[%emt 0:02:51]} c5 {[%emt 0:02:15]} 12. Qc2 {[%emt 0:01:34]} Ne4 {[%emt 0:07:55]} 13. Nxe4 {[%emt 0:12:39]} Bxh4 {[%emt 0:09:42]} 14. Nd6 {[%emt 0:11:30]} Bxf2+ {[%emt 0:10:47]} 15. Rxf2 {[%emt 0:01:13]} Qc7 {[%emt 0:01:22]} 16. Nxb7 {[%emt 0:02:14]} Qxb7 {[%emt 0:00:06]} 17. Bh7+ {[%emt 0:02:23]} Kh8 {[%emt 0:00:07]} 18. Bf5 {[%emt 0:00:37]} cxd4 {[%emt 0:02:16]} 19. exd4 {[%emt 0:00:37]} Rac8 {[%emt 0:00:34]} 20. Qb1 {[%emt 0:02:34]} Rc4 {[%emt 0:03:45]} 21. Rfc2 {[%emt 0:01:41]} Rfc8 {[%emt 0:00:37]} 22. b3 {[%emt 0:02:49]} Rxc2 {[%emt 0:02:17]} 23. Rxc2 {[%emt 0:00:10]} Rc7 {[%emt 0:01:02]} 24. Qc1 {[%emt 0:00:36]} 1-0

[Event "57th Biel Festival ATO 2024"]
[Site "Biel"]
[Date "2024.07.22"]
[Round "6.31"]
[White "Papaux, Jeremie"]
[Black "Christoffersen, Odd"]
[Result "1-0"]
[ECO "D35"]
[WhiteElo "1814"]
[BlackElo "1676"]
[Annotator "NA"]
[PlyCount "113"]
[EventDate "2024.07.03"]
[EventType "swiss"]
[EventCountry "SUI"]
[SourceTitle "playchess.com"]
[Source "ChessBase"]
[SourceQuality "1"]
[TimeControl "40/5400+30:1800+30"]

1. d4 {[%emt 0:00:07]} d5 {[%emt 0:03:14]} 2. c4 {[%emt 0:00:31]} e6 {[%emt 0:00:15]} 3. Nf3 {[%emt 0:00:06]} c6 {[%emt 0:00:51]} 4. cxd5 {[%emt 0:00:21]} exd5 {[%emt 0:00:25]} 5. Nc3 {[%emt 0:00:06]} Nf6 {[%emt 0:00:34]} 6. Bg5 {[%emt 0:00:31]} Be7 {[%emt 0:00:52]} 7. e3 {[%emt 0:02:09]} Bf5 {[%emt 0:02:13]} 8. Bd3 {[%emt 0:03:49]} Bxd3 {[%emt 0:01:27]} 9. Qxd3 {[%emt 0:00:04]} O-O {[%emt 0:01:10]} 10. O-O {[%emt 0:00:35]} Re8 {[%emt 0:01:24]} 11. Bxf6 {[%emt 0:07:35]} Bxf6 {[%emt 0:00:34]} 12. b4 {[%emt 0:00:07]} Nd7 {[%emt 0:06:42]} 13. b5 {[%emt 0:03:09]} Nb6 {[%emt 0:06:11]} 14. bxc6 {[%emt 0:00:48]} bxc6 {[%emt 0:08:19]} 15. Rac1 {[%emt 0:04:28]} Qd7 {[%emt 0:03:18]} 16. Ne2 {[%emt 0:11:40]} Rac8 {[%emt 0:02:40]} 17. Rc3 {[%emt 0:01:13]} Na4 {[%emt 0:04:52]} 18. Ra3 {[%emt 0:05:15]} Nb6 {[%emt 0:01:55]} 19. Rc1 {[%emt 0:06:56]} Nc4 {[%emt 0:01:25]} 20. Rb3 {[%emt 0:00:13]} Rb8 {[%emt 0:01:05]} 21. Nd2 {[%emt 0:04:02]} Nxd2 {[%emt 0:05:04]} 22. Qxd2 {[%emt 0:00:12]} Rxb3 {[%emt 0:02:13]} 23. axb3 {[%emt 0:00:06]} Rb8 {[%emt 0:00:21]} 24. Qc2 {[%emt 0:01:10]} g6 {[%emt 0:07:02]} 25. Qxc6 {[%emt 0:04:27]} Qxc6 {[%emt 0:00:20]} 26. Rxc6 {[%emt 0:00:05]} Rxb3 {[%emt 0:00:45]} 27. g3 {[%emt 0:00:07]} Kg7 {[%emt 0:05:23]} 28. Ra6 {[%emt 0:01:30]} Rb7 {[%emt 0:01:12]} 29. Nc3 {[%emt 0:00:10]} Rd7 {[%emt 0:01:18]} 30. Nb5 {[%emt 0:00:24]} Be7 {[%emt 0:02:25]} 31. Rxa7 {[%emt 0:00:11]} Rxa7 {[%emt 0:00:58]} 32. Nxa7 {[%emt 0:00:05]} Kf6 {[%emt 0:01:08]} 33. f3 {[%emt 0:01:30]} Ke6 {[%emt 0:04:26]} 34. e4 {[%emt 0:00:22]} Bd8 {[%emt 0:00:42]} 35. Nb5 {[%emt 0:01:42]} Bb6 {[%emt 0:03:44]} 36. Kf2 {[%emt 0:00:17]} f5 {[%emt 0:04:28]} 37. Ke3 {[%emt 0:01:26]} fxe4 {[%emt 0:02:45]} 38. fxe4 {[%emt 0:00:08]} Ba5 {[%emt 0:01:49]} 39. Na3 {[%emt 0:02:35]} Bb6 {[%emt 0:02:22]} 40. Nc2 {[%emt 0:00:13]} Ba5 {[%emt 0:00:39]} 41. Kd3 {[%emt 0:30:16]} Bc7 {[%emt 0:31:23]} 42. Ne3 {[%emt 0:00:23]} dxe4+ {[%emt 0:00:19]} 43. Kxe4 {[%emt 0:00:04]} h5 {[%emt 0:00:43]} 44. Nd5 {[%emt 0:00:39]} Bb8 {[%emt 0:00:38]} 45. Nf4+ {[%emt 0:00:45]} Kf6 {[%emt 0:00:38]} 46. h3 {[%emt 0:01:12]} Ba7 {[%emt 0:02:38]} 47. Nd3 {[%emt 0:02:59]} g5 {[%emt 0:02:30]} 48. Nc5 {[%emt 0:02:48]} Kg6 {[%emt 0:02:32]} 49. g4 {[%emt 0:00:21]} hxg4 {[%emt 0:00:21]} 50. hxg4 {[%emt 0:00:04]} Bb8 {[%emt 0:01:06]} 51. Kd5 {[%emt 0:00:33]} Kf7 {[%emt 0:00:00]} 52. Kc6 {[%emt 0:00:00]} Ke7 {[%emt 0:00:00]} 53. d5 {[%emt 0:00:00]} Bf4 {[%emt 0:00:00]} 54. Ne4 {[%emt 0:00:00]} Kd8 {[%emt 0:00:00]} 55. d6 {[%emt 0:00:00]} Be3 {[%emt 0:00:00]} 56. d7 {[%emt 0:00:00]} Bf4 {[%emt 0:00:00]} 57. Nc5 {[%emt 0:00:00]} 1-0

[Event "57th Biel Festival ATO 2024"]
[Site "Biel"]
[Date "2024.07.22"]
[Round "6.33"]
[White "Gotti, Nicola"]
[Black "Harte, Bernd"]
[Result "0-1"]
[ECO "C62"]
[WhiteElo "1804"]
[BlackElo "1592"]
[Annotator "NA RC"]
[PlyCount "41"]
[EventDate "2024.07.03"]
[EventType "swiss"]
[EventCountry "SUI"]
[SourceTitle "playchess.com"]
[Source "ChessBase"]
[SourceQuality "1"]
[TimeControl "40/5400+30:1800+30"]

1. e4 {[%emt 0:00:07]} e5 {[%emt 0:00:12]} 2. Nf3 {[%emt 0:00:06]} Nc6 {[%emt 0:00:28]} 3. Bb5 {[%emt 0:00:06]} d6 {[%emt 0:00:22]} 4. d4 {[%emt 0:00:13]} exd4 {[%emt 0:00:39]} 5. Bxc6+ {[%emt 0:00:19]} bxc6 {[%emt 0:00:19]} 6. Qxd4 {[%emt 0:00:11]} Bb7 {[%emt 0:01:04]} 7. Nc3 {[%emt 0:01:55]} Nf6 {[%emt 0:00:29]} 8. Bg5 {[%emt 0:01:11]} Be7 {[%emt 0:00:38]} 9. O-O {[%emt 0:01:10]} O-O {[%emt 0:00:24]} 10. Rad1 {[%emt 0:00:51]} Re8 {[%emt 0:04:29]} 11. Qa4 {[%emt 0:04:04]} h6 {[%emt 0:01:01]} 12. Bh4 {[%emt 0:01:18]} g5 {[%emt 0:04:55]} 13. Bg3 {[%emt 0:00:07]} Nh5 {[%emt 0:00:32]} 14. Qb3 {[%emt 0:02:02]} Nxg3 {[%emt 0:00:35]} 15. fxg3 {[%emt 0:00:12]} Ba6 {[%emt 0:01:33]} 16. Ne5 {[%emt 0:01:06]} d5 {[%emt 0:02:36]} 17. exd5 {[%emt 0:00:56]} Bc5+ {[%emt 0:01:44]} 18. Kh1 {[%emt 0:00:58]} Rxe5 {[%emt 0:00:33]} 19. dxc6 {[%emt 0:00:19]} Qe7 {[%emt 0:01:13]} 20. Nd5 {[%emt 0:02:41]} Rxd5 {[%emt 0:01:11]} 21. Qxd5 {[%emt 0:03:28]} 0-1

[Event "57th Biel Festival ATO 2024"]
[Site "Biel"]
[Date "2024.07.22"]
[Round "6.34"]
[White "Kern, Beat"]
[Black "Kim, Donghan"]
[Result "0-1"]
[ECO "D46"]
[WhiteElo "1717"]
[BlackElo "1746"]
[Annotator "NA RC"]
[PlyCount "34"]
[EventDate "2024.07.03"]
[EventType "swiss"]
[EventCountry "SUI"]
[SourceTitle "playchess.com"]
[Source "ChessBase"]
[SourceQuality "1"]
[TimeControl "40/5400+30:1800+30"]

1. Nf3 {[%emt 0:00:09]} Nf6 {[%emt 0:00:13]} 2. d4 {[%emt 0:00:15]} e6 {[%emt 0:00:16]} 3. c4 {[%emt 0:00:28]} d5 {[%emt 0:00:11]} 4. e3 {[%emt 0:00:40]} c6 {[%emt 0:00:30]} 5. Nc3 {[%emt 0:00:39]} Be7 {[%emt 0:01:05]} 6. Bd3 {[%emt 0:00:46]} Nbd7 {[%emt 0:01:19]} 7. O-O {[%emt 0:00:48]} O-O {[%emt 0:01:11]} 8. b3 {[%emt 0:01:33]} b6 {[%emt 0:01:28]} 9. e4 {[%emt 0:02:33]} Bb4 {[%emt 0:05:10]} 10. Nxd5 {[%emt 0:06:35]} exd5 {[%emt 0:06:18]} 11. exd5 {[%emt 0:05:09]} cxd5 {[%emt 0:00:29]} 12. a3 {[%emt 0:01:28]} Bd6 {[%emt 0:01:46]} 13. cxd5 {[%emt 0:04:17]} Nxd5 {[%emt 0:01:42]} 14. Ng5 {[%emt 0:04:28]} h6 {[%emt 0:04:11]} 15. Ne4 {[%emt 0:02:24]} N7f6 {[%emt 0:03:49]} 16. f3 {[%emt 0:06:05]} Bb7 {[%emt 0:02:22]} 17. Bb2 {[%emt 0:06:39]} Ne3 {[%emt 0:01:01]} 0-1

[Event "57th Biel Festival ATO 2024"]
[Site "Biel"]
[Date "2024.07.22"]
[Round "6.35"]
[White "Panda, Gyorgy"]
[Black "Ehrsam, Andreas"]
[Result "1-0"]
[ECO "D37"]
[WhiteElo "1713"]
[BlackElo "1793"]
[Annotator "NA"]
[PlyCount "84"]
[EventDate "2024.07.03"]
[EventType "swiss"]
[EventCountry "SUI"]
[SourceTitle "playchess.com"]
[Source "ChessBase"]
[SourceQuality "1"]
[TimeControl "40/5400+30:1800+30"]

1. d4 {[%emt 0:00:06]} d5 {[%emt 0:00:18]} 2. c4 {[%emt 0:00:06]} e6 {[%emt 0:00:12]} 3. Nc3 {[%emt 0:00:10]} Nf6 {[%emt 0:00:31]} 4. Nf3 {[%emt 0:00:08]} Be7 {[%emt 0:01:20]} 5. Bf4 {[%emt 0:00:08]} c6 {[%emt 0:00:09]} 6. e3 {[%emt 0:00:41]} O-O {[%emt 0:01:07]} 7. Bd3 {[%emt 0:00:04]} Nbd7 {[%emt 0:00:12]} 8. e4 {[%emt 0:02:56]} dxe4 {[%emt 0:00:21]} 9. Nxe4 {[%emt 0:00:10]} Nxe4 {[%emt 0:00:05]} 10. Bxe4 {[%emt 0:00:06]} Bb4+ {[%emt 0:01:02]} 11. Bd2 {[%emt 0:02:51]} Bxd2+ {[%emt 0:09:39]} 12. Qxd2 {[%emt 0:00:16]} Nf6 {[%emt 0:00:15]} 13. Bc2 {[%emt 0:00:53]} b6 {[%emt 0:01:14]} 14. O-O {[%emt 0:01:35]} Qc7 {[%emt 0:00:25]} 15. Rfd1 {[%emt 0:02:40]} Bb7 {[%emt 0:00:32]} 16. Qg5 {[%emt 0:05:06]} h6 {[%emt 0:01:29]} 17. Qe3 {[%emt 0:07:28]} Rfd8 {[%emt 0:01:47]} 18. h3 {[%emt 0:03:48]} Rac8 {[%emt 0:01:58]} 19. Rac1 {[%emt 0:00:19]} Qe7 {[%emt 0:12:12]} 20. Bb3 {[%emt 0:08:40]} Re8 {[%emt 0:09:05]} 21. Ba4 {[%emt 0:04:49]} Qb4 {[%emt 0:03:01]} 22. Bb3 {[%emt 0:00:53]} c5 {[%emt 0:02:21]} 23. a3 {[%emt 0:00:37]} cxd4 {[%emt 0:01:53]} 24. Nxd4 {[%emt 0:00:42]} Qc5 {[%emt 0:01:41]} 25. Bc2 {[%emt 0:04:47]} Rcd8 {[%emt 0:04:44]} 26. b4 {[%emt 0:00:27]} Qc7 {[%emt 0:01:01]} 27. Bd3 {[%emt 0:15:56]} Qb8 {[%emt 0:04:28]} 28. c5 {[%emt 0:01:12]} e5 {[%emt 0:09:37]} 29. Nf5 {[%emt 0:01:56]} bxc5 {[%emt 0:01:59]} 30. bxc5 {[%emt 0:02:18]} Bc6 {[%emt 0:01:17]} 31. Qg3 {[%emt 0:01:42]} g6 {[%emt 0:06:02]} 32. Nxh6+ {[%emt 0:12:33]} Kg7 {[%emt 0:03:04]} 33. Nf5+ {[%emt 0:00:16]} Kf8 {[%emt 0:04:50]} 34. Nd6 {[%emt 0:01:28]} Nh5 {[%emt 0:02:51]} 35. Qg5 {[%emt 0:05:48]} Nf4 {[%emt 0:01:57]} 36. Qf6 {[%emt 0:00:57]} Qc7 {[%emt 0:01:31]} 37. Nxe8 {[%emt 0:02:28]} Rxe8 {[%emt 0:00:01]} 38. Bc4 {[%emt 0:04:54]} Nxg2 {[%emt 0:05:10]} 39. Rd6 {[%emt 0:00:42]} Rc8 {[%emt 0:00:55]} 40. Rcd1 {[%emt 0:00:35]} Nf4 {[%emt 0:01:34]} 41. Rd8+ {[%emt 0:30:19]} Be8 {[%emt 0:30:20]} 42. R1d7 {[%emt 0:01:41]} Rxd8 {[%emt 0:03:15]} 1-0

[Event "57th Biel Festival ATO 2024"]
[Site "Biel"]
[Date "2024.07.22"]
[Round "6.36"]
[White "Lachausse, Bruno"]
[Black "Settegrana, Miro"]
[Result "1/2-1/2"]
[ECO "B14"]
[WhiteElo "1787"]
[BlackElo "1532"]
[Annotator "NA"]
[PlyCount "83"]
[EventDate "2024.07.03"]
[EventType "swiss"]
[EventCountry "SUI"]
[SourceTitle "playchess.com"]
[Source "ChessBase"]
[SourceQuality "1"]
[TimeControl "40/5400+30:1800+30"]

1. e4 {[%emt 0:01:24]} c6 {[%emt 0:05:01]} 2. d4 {[%emt 0:00:09]} d5 {[%emt 0:00:16]} 3. exd5 {[%emt 0:00:16]} cxd5 {[%emt 0:00:10]} 4. c4 {[%emt 0:00:08]} Nf6 {[%emt 0:00:31]} 5. Nc3 {[%emt 0:00:09]} g6 {[%emt 0:04:37]} 6. Bd3 {[%emt 0:03:08]} Bg7 {[%emt 0:01:03]} 7. Nge2 {[%emt 0:00:20]} O-O {[%emt 0:00:25]} 8. O-O {[%emt 0:00:07]} Nc6 {[%emt 0:01:51]} 9. Be3 {[%emt 0:00:55]} Nb4 {[%emt 0:01:23]} 10. Bb1 {[%emt 0:02:38]} dxc4 {[%emt 0:02:04]} 11. Qa4 {[%emt 0:00:53]} Nbd5 {[%emt 0:01:25]} 12. Qxc4 {[%emt 0:01:00]} Nxe3 {[%emt 0:00:57]} 13. fxe3 {[%emt 0:00:28]} Qb6 {[%emt 0:01:19]} 14. Na4 {[%emt 0:04:14]} Qe6 {[%emt 0:02:14]} 15. Qd3 {[%emt 0:02:15]} Ng4 {[%emt 0:07:43]} 16. e4 {[%emt 0:05:18]} b6 {[%emt 0:04:05]} 17. h3 {[%emt 0:02:04]} Nf6 {[%emt 0:01:29]} 18. Bc2 {[%emt 0:00:34]} Bb7 {[%emt 0:02:43]} 19. Nac3 {[%emt 0:00:16]} Rac8 {[%emt 0:02:04]} 20. Rad1 {[%emt 0:04:21]} Rfd8 {[%emt 0:02:49]} 21. Bb3 {[%emt 0:02:17]} Qd7 {[%emt 0:11:07]} 22. Nf4 {[%emt 0:24:58]} e6 {[%emt 0:10:01]} 23. Qe3 {[%emt 0:05:52]} Bh6 {[%emt 0:03:55]} 24. g4 {[%emt 0:02:57]} Ne8 {[%emt 0:03:33]} 25. Qe2 {[%emt 0:03:45]} Qc7 {[%emt 0:06:07]} 26. Qf2 {[%emt 0:06:07]} Bxf4 {[%emt 0:04:11]} 27. Qxf4 {[%emt 0:00:59]} Qxf4 {[%emt 0:00:02]} 28. Rxf4 {[%emt 0:00:10]} Nd6 {[%emt 0:00:41]} 29. Rdf1 {[%emt 0:05:12]} Rc7 {[%emt 0:01:35]} 30. d5 {[%emt 0:00:41]} e5 {[%emt 0:01:26]} 31. R4f2 {[%emt 0:03:59]} Ba6 {[%emt 0:00:46]} 32. Rd1 {[%emt 0:01:52]} Kg7 {[%emt 0:01:37]} 33. Kg2 {[%emt 0:00:41]} b5 {[%emt 0:01:52]} 34. Kf3 {[%emt 0:04:24]} Rdc8 {[%emt 0:03:42]} 35. a3 {[%emt 0:01:48]} Rb8 {[%emt 0:01:02]} 36. Na2 {[%emt 0:04:00]} Bb7 {[%emt 0:01:31]} 37. Rdd2 {[%emt 0:01:22]} a5 {[%emt 0:00:37]} 38. a4 {[%emt 0:02:45]} b4 {[%emt 0:00:40]} 39. Rc2 {[%emt 0:00:09]} Rcc8 {[%emt 0:00:27]} 40. Nc1 {[%emt 0:01:27]} Rxc2 {[%emt 0:00:00]} 41. Ke3 {[%emt 0:09:35]} h6 {[%emt 0:08:30]} 42. h4 {[%emt 0:07:20]} 1/2-1/2